lending/lending_fUSD_20250114
["ID","MTS","AMOUNT","RATE_DAILY","PERIOD"]
[348919448,1736873441352,-500.26673892,9.965e-05,2]
[348919450,1736873441362,-500.0,9.965e-05,2]
[348919452,1736873441372,-500.0,9.965e-05,2]
[348919453,1736873441381,-500.48833845,9.965e-05,2]
[348919454,1736873441391,-500.50102348,9.965e-05,2]
[348919455,1736873441400,-537.06924038,9.965e-05,2]
[348919456,1736873441410,-500.31768155,9.965e-05,2]
[348919457,1736873441419,-500.0,9.965e-05,2]
[348919458,1736873441429,-471.74215027,9.965e-05,2]
[348919459,1736873441439,-500.0,9.965e-05,2]
[348919460,1736873441450,-500.45813681,9.965e-05,2]
[348919461,1736873441462,-434.97513068,9.965e-05,2]
[348919462,1736873441472,-500.0,9.965e-05,2]
[348919463,1736873441482,-1121.41,9.965e-05,2]
[348919464,1736873441492,-500.0,9.965e-05,2]
[348919465,1736873441503,-759.75,9.965e-05,2]
[348919467,1736873441514,-1262.08,9.965e-05,2]
[348919469,1736873441523,-896.79,9.965e-05,2]
[348919471,1736873441532,-2286.33,9.965e-05,2]
[348919477,1736873441587,-1099.72,9.965e-05,2]
[348919479,1736873441597,-500.0,9.965e-05,2]
[348919481,1736873441606,-500.0,9.965e-05,2]
[348919483,1736873441615,-500.0,9.965e-05,2]
[348919485,1736873441624,-500.0,9.965e-05,2]
[348919487,1736873441633,-2044.8,9.965e-05,2]
[348919489,1736873441642,-777.29,9.965e-05,2]
[348919491,1736873441652,-797.41,9.965e-05,2]
[348919493,1736873441662,-261.23793804,9.965e-05,2]
[348919495,1736873441671,-2913.28,9.965e-05,2]
[348919497,1736873441680,-500.0,9.965e-05,2]
[348919499,1736873441690,-603.47,9.965e-05,2]
[348919501,1736873441703,-3734.94,9.965e-05,2]
[348919503,1736873441713,-1162.12,9.965e-05,2]
[348919505,1736873441723,-500.0,9.965e-05,2]
[348919507,1736873441732,-1874.38,9.965e-05,2]
[348919509,1736873441743,-1069.78,9.965e-05,2]
[348919511,1736873441754,-644.96,9.965e-05,2]
[348919513,1736873441764,-700.1,9.965e-05,2]
[348919515,1736873441774,-271.32033702,9.965e-05,2]
[348919517,1736873441782,-1068.25,9.966e-05,2]
[348919519,1736873441791,-500.0,9.966e-05,2]
[348919521,1736873441801,-2874.36,9.966e-05,2]
[348919523,1736873441810,-500.0,9.966e-05,2]
[348919525,1736873441819,-500.0,9.966e-05,2]
[348919527,1736873441828,-717.03,9.966e-05,2]
[348919529,1736873441839,-664.23,9.966e-05,2]
[348919531,1736873441848,-500.0,9.966e-05,2]
[348919533,1736873441858,-500.0,9.966e-05,2]
[348919535,1736873441867,-1000.0,9.966e-05,2]
[348919537,1736873441877,-864.55,9.966e-05,2]
[348919539,1736873441887,-500.0,9.966e-05,2]
[348919541,1736873441896,-1140.82,9.966e-05,2]
[348919543,1736873441906,-734.69434197,9.966e-05,2]
[348919545,1736873441918,-248.69565803,9.966e-05,2]
[348919547,1736873441928,-271.32033702,9.967e-05,2]
[348919549,1736873441936,-271.32033702,9.968e-05,2]
[348919551,1736873441945,-271.32033702,9.969e-05,2]
[348919553,1736873441954,-1876.37237025,9.97e-05,2]
[348919556,1736873441974,-899.10498785,9.97e-05,2]
[348919558,1736873441983,-1000.0,9.97e-05,2]
[348919560,1736873441992,-1000.0,9.97e-05,2]
[348919562,1736873442002,-251.08397622,9.97e-05,2]
[348919564,1736873442013,-271.32033702,9.97e-05,2]
[348919566,1736873442023,-1220.98786281,9.97e-05,2]
[348919568,1736873442032,-251.08397622,9.97e-05,2]
[348919570,1736873442041,-937.59212067,9.97e-05,2]
[348919572,1736873442051,-937.59212067,9.971e-05,2]
[348919574,1736873442060,-13468.42662178,9.971e-05,2]
[348919576,1736873442069,-316.08967623,9.971e-05,2]
[348919578,1736873442078,-950.21145107,9.971e-05,2]
[348919580,1736873442087,-13560.79257236,9.971e-05,2]
[348919582,1736873442096,-7226.61126251,9.971e-05,2]
[348919584,1736873442106,-271.32033702,9.972e-05,2]
[348919586,1736873442115,-726.68344841,9.972e-05,2]
[348919588,1736873442124,-215.81080379,9.972e-05,2]
[348919590,1736873442134,-2686.84200782,9.972e-05,2]
[348919592,1736873442143,-316.08967623,9.972e-05,2]
[348919594,1736873442153,-19695.0,9.973e-05,2]
[348919596,1736873442162,-4613.0,9.973e-05,2]
[348919597,1736873442171,-1733.91125745,9.973e-05,2]
[348919599,1736873442181,-271.32033702,9.973e-05,2]
[348919601,1736873442190,-14059.98040547,9.973e-05,2]
[348919603,1736873442200,-500.0,9.973e-05,2]
[348919605,1736873442209,-574.35,9.973e-05,2]
[348919607,1736873442218,-500.0,9.973e-05,2]
[348919609,1736873442228,-726.68344841,9.973e-05,2]
[348919612,1736873442238,-912.94887107,9.973e-05,2]
[348919614,1736873442247,-31758.68138416,9.974e-05,2]
[348919615,1736873442256,-500.0,9.974e-05,2]
[348919617,1736873442266,-685.17,9.974e-05,2]
[348919620,1736873442276,-501.32044489,9.974e-05,2]
[348919621,1736873442286,-500.0,9.974e-05,2]
[348919623,1736873442295,-757.14,9.974e-05,2]
[348919625,1736873442304,-271.32033702,9.974e-05,2]
[348919627,1736873442314,-2775.4773581,9.975e-05,2]
[348919629,1736873442323,-200.0,9.975e-05,2]
[348919631,1736873442333,-500.0,9.975e-05,2]
[348919633,1736873442341,-500.0,9.975e-05,2]
[348919635,1736873442350,-500.0,9.975e-05,2]
[348919637,1736873442360,-500.0,9.975e-05,2]
[348919639,1736873442370,-2020.98,9.975e-05,2]
[348919641,1736873442379,-786.31,9.975e-05,2]
[348919643,1736873442387,-500.0,9.975e-05,2]
[348919645,1736873442396,-7433.76,9.975e-05,2]
[348919647,1736873442406,-500.0,9.975e-05,2]
[348919649,1736873442415,-896.11,9.975e-05,2]
[348919651,1736873442424,-1140.47,9.975e-05,2]
[348919653,1736873442433,-1229.69,9.975e-05,2]
[348919655,1736873442442,-832.87,9.975e-05,2]
[348919657,1736873442452,-2011.66,9.975e-05,2]
[348919659,1736873442461,-1370.26,9.975e-05,2]
[348919661,1736873442470,-2128.17,9.975e-05,2]
[348919663,1736873442479,-2417.47,9.975e-05,2]
[348919665,1736873442488,-1036.22,9.975e-05,2]
[348919667,1736873442497,-3099.65,9.975e-05,2]
[348919669,1736873442506,-608.09,9.975e-05,2]
[348919671,1736873442516,-1903.90206678,9.975e-05,2]
[348919673,1736873442525,-2686.84200782,9.975e-05,2]
[348919675,1736873442534,-1733.91125745,9.975e-05,2]
[348919677,1736873442543,-215.81080379,9.975e-05,2]
[348919679,1736873442553,-271.32033702,9.975e-05,2]
[348919681,1736873442562,-950.21145107,9.976e-05,2]
[348919683,1736873442571,-14059.98040547,9.976e-05,2]
[348919685,1736873442580,-10063.38881588,9.976e-05,2]
[348919687,1736873442590,-271.32033702,9.977e-05,2]
[348919689,1736873442599,-937.59212067,9.977e-05,2]
[348919691,1736873442608,-405.66532864,9.977e-05,2]
[348919693,1736873442618,-31758.68138416,9.977e-05,2]
[348919695,1736873442627,-13560.79257236,9.978e-05,2]
[348919697,1736873442636,-440577.47396013,9.978e-05,2]
[348919699,1736873442645,-271.32033702,9.978e-05,2]
[348919701,1736873442654,-31758.68138416,9.978e-05,2]
[348919703,1736873442664,-200.0,9.978e-05,2]
[348919705,1736873442673,-13560.79257236,9.978e-05,2]
[348919707,1736873442682,-13468.42662178,9.978e-05,2]
[348919709,1736873442691,-1733.91125745,9.979e-05,2]
[348919711,1736873442704,-912.94887107,9.979e-05,2]
[348919713,1736873442713,-7226.61126251,9.979e-05,2]
[348919715,1736873442722,-950.21145107,9.979e-05,2]
[348919717,1736873442732,-31758.68138416,9.979e-05,2]
[348919719,1736873442743,-251.08397622,9.979e-05,2]
[348919721,1736873442753,-440577.47396013,9.979e-05,2]
[348919723,1736873442762,-405.66532864,9.979e-05,2]
[348919725,1736873442771,-271.32033702,9.979e-05,2]
[348919727,1736873442781,-2686.84200782,9.979e-05,2]
[348919729,1736873442790,-14059.98040547,9.979e-05,2]
[348919731,1736873442799,-1401.23332238,9.979e-05,2]
[348919733,1736873442809,-13468.42662178,9.979e-05,2]
[348919734,1736873442818,-4357.13541993,9.98e-05,2]
[348919736,1736873442827,-20938.30650833,9.98e-05,2]
[348919738,1736873442836,-271.32033702,9.98e-05,2]
[348919739,1736873442845,-4357.13541993,9.981e-05,2]
[348919741,1736873442855,-20938.30650833,9.981e-05,2]
[348919743,1736873442864,-937.59212067,9.981e-05,2]
[348919745,1736873442874,-215.81080379,9.981e-05,2]
[348919747,1736873442883,-3872.56968682,9.982e-05,2]
[348919748,1736873442893,-271.32033702,9.982e-05,2]
[348919750,1736873442902,-10063.38881588,9.982e-05,2]
[348919752,1736873442912,-4357.13541993,9.982e-05,2]
[348919754,1736873442921,-200.0,9.982e-05,2]
[348919755,1736873442930,-14059.98040547,9.982e-05,2]
[348919757,1736873442939,-440577.47396013,9.983e-05,2]
[348919759,1736873442949,-13468.42662178,9.983e-05,2]
[348919761,1736873442958,-405.66532864,9.983e-05,2]
[348919763,1736873442967,-1220.98786281,9.983e-05,2]
[348919764,1736873442976,-271.32033702,9.983e-05,2]
[348919766,1736873442985,-1903.90206678,9.984e-05,2]
[348919768,1736873442994,-1401.23332238,9.984e-05,2]
[348919770,1736873443005,-405.66532864,9.984e-05,2]
[348919771,1736873443014,-271.32033702,9.984e-05,2]
[348919773,1736873443023,-10063.38881588,9.984e-05,2]
[348919775,1736873443033,-937.59212067,9.984e-05,2]
[348919777,1736873443042,-316.08967623,9.984e-05,2]
[348919778,1736873443051,-1401.23332238,9.985e-05,2]
[348919780,1736873443061,-20938.30650833,9.985e-05,2]
[348919782,1736873443072,-1220.98786281,9.985e-05,2]
[348919784,1736873443081,-251.08397622,9.985e-05,2]
[348919786,1736873443090,-950.21145107,9.985e-05,2]
[348919787,1736873443099,-271.32033702,9.985e-05,2]
[348919789,1736873443110,-7226.61126251,9.986e-05,2]
[348919791,1736873443119,-1220.98786281,9.986e-05,2]
[348919793,1736873443129,-440577.47396013,9.986e-05,2]
[348919795,1736873443138,-271.32033702,9.987e-05,2]
[348919796,1736873443147,-20938.30650833,9.987e-05,2]
[348919798,1736873443157,-31758.68138416,9.988e-05,2]
[348919800,1736873443166,-726.68344841,9.988e-05,2]
[348919802,1736873443175,-726.68344841,9.988e-05,2]
[348919804,1736873443185,-2686.84200782,9.988e-05,2]
[348919806,1736873443194,-3872.56968682,9.988e-05,2]
[348919808,1736873443203,-14059.98040547,9.988e-05,2]
[348919809,1736873443212,-271.32033702,9.988e-05,2]
[348919811,1736873443222,-316.08967623,9.988e-05,2]
[348919813,1736873443231,-937.59212067,9.988e-05,2]
[348919815,1736873443241,-440577.47396013,9.988e-05,2]
[348919817,1736873443250,-4357.13541993,9.989e-05,2]
[348919820,1736873443260,-13468.42662178,9.989e-05,2]
[348919823,1736873443270,-316.08967623,9.989e-05,2]
[348919825,1736873443279,-7226.61126251,9.989e-05,2]
[348919827,1736873443288,-14059.98040547,9.989e-05,2]
[348919829,1736873443297,-13560.79257236,9.989e-05,2]
[348919831,1736873443307,-912.94887107,9.99e-05,2]
[348919833,1736873443316,-2775.4773581,9.99e-05,2]
[348919834,1736873443326,-13560.79257236,9.99e-05,2]
[348919836,1736873443335,-251.08397622,9.99e-05,2]
[348919838,1736873443344,-13560.79257236,9.99e-05,2]
[348919840,1736873443353,-7226.61126251,9.991e-05,2]
[348919841,1736873443362,-912.94887107,9.991e-05,2]
[348919843,1736873443371,-3872.56968682,9.991e-05,2]
[348919845,1736873443380,-950.21145107,9.991e-05,2]
[348919846,1736873443390,-440577.47396013,9.992e-05,2]
[348919848,1736873443399,-1733.91125745,9.992e-05,2]
[348919850,1736873443408,-726.68344841,9.992e-05,2]
[348919852,1736873443417,-3872.56968682,9.992e-05,2]
[348919854,1736873443425,-405.66532864,9.993e-05,2]
[348919856,1736873443434,-215.81080379,9.993e-05,2]
[348919858,1736873443443,-31758.68138416,9.993e-05,2]
[348919860,1736873443453,-3872.56968682,9.993e-05,2]
[348919861,1736873443462,-1903.90206678,9.994e-05,2]
[348919863,1736873443471,-2686.84200782,9.994e-05,2]
[348919865,1736873443480,-1401.23332238,9.994e-05,2]
[348919867,1736873443489,-1401.23332238,9.994e-05,2]
[348919868,1736873443498,-1401.23332238,9.995e-05,2]
[348919870,1736873443507,-912.94887107,9.995e-05,2]
[348919872,1736873443516,-20938.30650833,9.995e-05,2]
[348919874,1736873443525,-20938.30650833,9.995e-05,2]
[348919876,1736873443534,-4357.13541993,9.995e-05,2]
[348919878,1736873443544,-215.81080379,9.995e-05,2]
[348919880,1736873443553,-500.0,9.995e-05,2]
[348919881,1736873443563,-251.0251732,9.995e-05,2]
[348919883,1736873443572,-6541.87038646,9.995e-05,2]
[348919885,1736873443581,-2775.4773581,9.996e-05,2]
[348919887,1736873443590,-200.0,9.996e-05,2]
[348919889,1736873443599,-1903.90206678,9.996e-05,2]
[348919891,1736873443610,-1903.90206678,9.996e-05,2]
[348919893,1736873443619,-10063.38881588,9.996e-05,2]
[348919895,1736873443628,-405.66532864,9.996e-05,2]
[348919896,1736873443637,-200.0,9.996e-05,2]
[348919898,1736873443647,-316.08967623,9.997e-05,2]
[348919900,1736873443656,-200.0,9.997e-05,2]
[348919902,1736873443665,-200.0,9.997e-05,2]
[348919904,1736873443675,-3872.56968682,9.997e-05,2]
[348919906,1736873443684,-912.94887107,9.998e-05,2]
[348919908,1736873443696,-950.21145107,9.998e-05,2]
[348919910,1736873443706,-10063.38881588,9.998e-05,2]
[348919912,1736873443716,-2775.4773581,9.998e-05,2]
[348919914,1736873443726,-10063.38881588,9.998e-05,2]
[348919915,1736873443736,-2686.84200782,9.998e-05,2]
[348919917,1736873443746,-13468.42662178,9.998e-05,2]
[348919919,1736873443756,-726.68344841,9.998e-05,2]
[348919921,1736873443768,-4357.13541993,9.998e-05,2]
[348919923,1736873443778,-1220.98786281,9.999e-05,2]
[348919925,1736873443788,-7226.61126251,9.999e-05,2]
[348919927,1736873443797,-1733.91125745,9.999e-05,2]
[348919929,1736873443806,-500.0,9.999e-05,2]
[348919930,1736873443816,-500.0,9.999e-05,2]
[348919932,1736873443825,-500.0,9.999e-05,2]
[348919934,1736873443835,-500.0,9.999e-05,2]
[348919936,1736873443845,-1733.91125745,9.999e-05,2]
[348919938,1736873443854,-1220.98786281,9.999e-05,2]
[348919940,1736873443865,-2775.4773581,9.999e-05,2]
[348919942,1736873443875,-1903.90206678,0.0001,2]
[348919944,1736873443885,-1222886.80350523,0.0001,2]
[348919978,1736873444257,-1259.76247456,0.0001,2]
[348919981,1736873444269,-94651.94103883,0.0001,2]
[348919989,1736873444301,-2784603.16298138,0.0001,2]
[348919992,1736873444311,-176.94705714,0.0001,2]
[348919994,1736873444321,-2102.83907893,0.0001,4]
[348919997,1736873444331,-500.0,0.0001,2]
[348920000,1736873444340,-1017.88764771,0.0001,2]
[348920002,1736873444349,-1000.0,0.00010094,2]
[348920004,1736873444360,-244.38,0.00010097,2]
[348920006,1736873444369,-500.0,0.00010132,2]
[348920008,1736873444379,-249.42,0.00010137,2]
[348920010,1736873444388,-775.0,0.00010237,2]
[348920012,1736873444397,-554.27,0.00010237,2]
[348920014,1736873444407,-500.0,0.00010237,2]
[348920016,1736873444416,-1298.27,0.00010237,2]
[348920018,1736873444425,-1067.04,0.00010237,2]
[348920019,1736873444434,-2046.78,0.00010237,2]
[348920020,1736873444444,-1253.37,0.00010237,2]
[348920021,1736873444453,-500.0,0.00010237,2]
[348920022,1736873444462,-831.64,0.00010237,2]
[348920023,1736873444472,-2049.18,0.00010237,2]
[348920024,1736873444481,-721.04,0.00010237,2]
[348920025,1736873444491,-500.0,0.00010237,2]
[348920026,1736873444500,-551.69,0.00010237,2]
[348920027,1736873444509,-638.19,0.00010237,2]
[348920028,1736873444519,-500.0,0.00010237,2]
[348920030,1736873444528,-526.93,0.00010237,2]
[348920032,1736873444538,-500.0,0.00010237,2]
[348920034,1736873444547,-2294.02,0.00010237,2]
[348920036,1736873444557,-931.12,0.00010237,2]
[348920038,1736873444567,-737.34,0.00010237,2]
[348920040,1736873444577,-500.0,0.00010237,2]
[348920042,1736873444587,-500.0,0.00010237,2]
[348920044,1736873444597,-1061.62,0.00010237,2]
[348920046,1736873444606,-500.0,0.00010237,2]
[348920048,1736873444616,-500.0,0.00010238,2]
[348920050,1736873444626,-682.17,0.00010238,2]
[348920052,1736873444635,-500.0,0.00010238,2]
[348920054,1736873444645,-500.0,0.00010238,2]
[348920056,1736873444656,-518.7491291,0.00010238,2]
[348920058,1736873444665,-459.07305688,0.00010238,2]
[348920060,1736873444674,-559.86,0.00010238,2]
[348920062,1736873444684,-500.0,0.00010238,2]
[348920064,1736873444698,-500.0,0.00010238,2]
[348920066,1736873444708,-500.0,0.00010238,2]
[348920068,1736873444717,-562.29768791,0.00010238,2]
[348920070,1736873444726,-500.0,0.00010238,2]
[348920072,1736873444738,-500.0,0.00010238,2]
[348920073,1736873444747,-500.0,0.00010238,2]
[348920075,1736873444756,-510.43601422,0.00010238,2]
[348920077,1736873444765,-500.0,0.00010238,2]
[348920079,1736873444777,-500.0,0.00010238,2]
[348920081,1736873444788,-500.0,0.00010238,2]
[348920083,1736873444798,-298.44538439,0.00010238,2]
[348920085,1736873444807,-406.3507197,0.00010238,2]
[348920087,1736873444817,-500.0,0.00010238,2]
[348920089,1736873444826,-500.0,0.00010238,2]
[348920091,1736873444836,-500.0,0.00010238,2]
[348920093,1736873444845,-500.0,0.00010238,2]
[348920095,1736873444855,-508.36826225,0.00010238,2]
[348920097,1736873444865,-500.0,0.00010238,2]
[348920099,1736873444875,-500.0,0.00010238,2]
[348920101,1736873444885,-500.0,0.00010238,2]
[348920103,1736873444895,-500.0,0.00010238,2]
[348920105,1736873444904,-500.0,0.00010238,2]
[348920107,1736873444913,-500.0,0.00010238,2]
[348920109,1736873444922,-500.0,0.00010238,2]
[348920111,1736873444933,-500.0,0.00010238,2]
[348920113,1736873444943,-500.0,0.00010238,2]
[348920115,1736873444952,-500.0,0.00010238,2]
[348920117,1736873444963,-500.0,0.00010238,2]
[348920120,1736873444972,-500.0,0.00010238,2]
[348920122,1736873444982,-500.0,0.00010238,2]
[348920124,1736873444992,-500.0,0.00010238,2]
[348920126,1736873445001,-500.0,0.00010238,2]
[348920127,1736873445012,-500.0,0.00010238,2]
[348920129,1736873445022,-500.0,0.00010238,2]
[348920132,1736873445032,-500.0,0.00010238,2]
[348920134,1736873445042,-500.0,0.00010238,2]
[348920135,1736873445051,-500.0,0.00010238,2]
[348920137,1736873445061,-500.0,0.00010238,2]
[348920139,1736873445071,-500.0,0.00010238,2]
[348920141,1736873445080,-500.0,0.00010238,2]
[348920144,1736873445090,-534.01,0.00010238,2]
[348920146,1736873445100,-500.0,0.00010238,2]
[348920148,1736873445109,-500.0,0.00010238,2]
[348920150,1736873445120,-500.0,0.00010238,2]
[348920152,1736873445130,-500.0,0.00010238,2]
[348920154,1736873445139,-500.0,0.00010238,2]
[348920156,1736873445149,-500.0,0.00010238,2]
[348920158,1736873445159,-500.0,0.00010238,2]
[348920160,1736873445169,-500.0,0.00010238,2]
[348920162,1736873445178,-500.0,0.00010238,2]
[348920164,1736873445188,-500.0,0.00010238,2]
[348920166,1736873445197,-500.0,0.00010238,2]
[348920168,1736873445208,-500.0,0.00010238,2]
[348920170,1736873445218,-500.0,0.00010238,2]
[348920172,1736873445228,-500.0,0.00010238,2]
[348920174,1736873445237,-500.0,0.00010238,2]
[348920175,1736873445248,-500.0,0.00010238,2]
[348920177,1736873445257,-530.14,0.00010238,2]
[348920179,1736873445267,-500.0,0.00010238,2]
[348920181,1736873445277,-500.0,0.00010238,2]
[348920183,1736873445286,-500.0,0.00010238,2]
[348920185,1736873445296,-500.0,0.00010238,2]
[348920187,1736873445305,-500.0,0.00010238,2]
[348920189,1736873445315,-500.0,0.00010238,2]
[348920191,1736873445324,-240.35,0.00010238,2]
[348920193,1736873445334,-500.0,0.00010238,2]
[348920195,1736873445344,-500.0,0.00010238,2]
[348920197,1736873445354,-500.0,0.00010238,2]
[348920199,1736873445364,-500.0,0.00010238,2]
[348920201,1736873445374,-500.0,0.00010238,2]
[348920203,1736873445384,-577.79,0.00010238,2]
[348920205,1736873445394,-500.0,0.00010238,2]
[348920207,1736873445404,-500.0,0.00010238,2]
[348920209,1736873445413,-500.0,0.00010238,2]
[348920212,1736873445423,-500.0,0.00010238,2]
[348920213,1736873445434,-532.22,0.00010238,2]
[348920216,1736873445447,-500.0,0.00010238,2]
[348920218,1736873445456,-500.0,0.00010238,2]
[348920220,1736873445466,-500.0,0.00010238,2]
[348920222,1736873445477,-500.0,0.00010238,2]
[348920224,1736873445486,-500.0,0.00010238,2]
[348920226,1736873445496,-500.0,0.00010238,2]
[348920228,1736873445506,-234.83134294,0.00010238,2]
[348920230,1736873445517,-500.0,0.00010238,2]
[348920232,1736873445527,-500.0,0.00010238,2]
[348920234,1736873445538,-500.0,0.00010238,2]
[348920236,1736873445547,-500.0,0.00010238,2]
[348920238,1736873445557,-500.0,0.00010238,2]
[348920240,1736873445567,-500.0,0.00010238,2]
[348920242,1736873445577,-500.0,0.00010238,2]
[348920244,1736873445586,-500.0,0.00010238,2]
[348920247,1736873445597,-500.0,0.00010238,2]
[348920249,1736873445607,-500.0,0.00010238,2]
[348920251,1736873445619,-548.45,0.00010238,2]
[348920253,1736873445630,-500.0,0.00010238,2]
[348920255,1736873445639,-500.0,0.00010238,2]
[348920257,1736873445649,-516.55,0.00010238,2]
[348920259,1736873445659,-500.0,0.00010238,2]
[348920261,1736873445669,-500.0,0.00010238,2]
[348920263,1736873445679,-500.0,0.00010238,2]
[348920265,1736873445689,-500.0,0.00010238,2]
[348920267,1736873445703,-500.0,0.00010238,2]
[348920269,1736873445713,-500.0,0.00010238,2]
[348920271,1736873445723,-500.0,0.00010238,2]
[348920274,1736873445735,-500.0,0.00010238,2]
[348920276,1736873445745,-500.0,0.00010238,2]
[348920278,1736873445755,-500.0,0.00010238,2]
[348920280,1736873445764,-500.0,0.00010238,2]
[348920282,1736873445776,-500.0,0.00010238,2]
[348920284,1736873445786,-500.0,0.00010238,2]
[348920286,1736873445796,-202.99,0.00010238,2]
[348920288,1736873445808,-500.0,0.00010238,2]
[348920290,1736873445817,-500.0,0.00010238,2]
[348920292,1736873445827,-500.0,0.00010238,2]
[348920294,1736873445837,-500.0,0.00010238,2]
[348920296,1736873445848,-500.0,0.00010238,2]
[348920298,1736873445859,-500.0,0.00010238,2]
[348920300,1736873445872,-500.0,0.00010238,2]
[348920302,1736873445882,-407.54397642,0.00010238,2]
[348920305,1736873445892,-500.0,0.00010238,2]
[348920307,1736873445902,-507.1812232,0.00010238,2]
[348920309,1736873445913,-211.64581508,0.00010238,2]
[348920311,1736873445923,-500.0,0.00010238,2]
[348920313,1736873445932,-500.0,0.00010238,2]
[348920315,1736873445942,-500.0,0.00010238,2]
[348920317,1736873445951,-500.0,0.00010238,2]
[348920319,1736873445961,-544.55,0.00010238,2]
[348920321,1736873445970,-500.0,0.00010238,2]
[348920323,1736873445980,-500.0,0.00010238,2]
[348920325,1736873445990,-601.16,0.00010238,2]
[348920327,1736873446000,-500.0,0.00010238,2]
[348920329,1736873446012,-505.37651756,0.00010238,2]
[348920331,1736873446022,-500.0,0.00010238,2]
[348920333,1736873446033,-500.0,0.00010238,2]
[348920335,1736873446043,-587.16,0.00010238,2]
[348920337,1736873446053,-500.0,0.00010238,2]
[348920339,1736873446063,-500.0,0.00010238,2]
[348920341,1736873446072,-500.0,0.00010238,2]
[348920343,1736873446082,-500.0,0.00010238,2]
[348920345,1736873446092,-500.0,0.00010238,2]
[348920347,1736873446102,-500.0,0.00010238,2]
[348920349,1736873446114,-500.0,0.00010238,2]
[348920352,1736873446123,-500.0,0.00010238,2]
[348920355,1736873446133,-500.0,0.00010238,2]
[348920358,1736873446143,-500.0,0.00010238,2]
[348920360,1736873446153,-500.0,0.00010238,2]
[348920363,1736873446163,-500.0,0.00010238,2]
[348920365,1736873446173,-500.0,0.00010238,2]
[348920367,1736873446183,-500.0,0.00010238,2]
[348920369,1736873446193,-159.04770325,0.00010238,2]
[348920371,1736873446203,-500.0,0.00010238,2]
[348920395,1736873446412,-500.0,0.00010238,2]
[348920397,1736873446426,-500.0,0.00010238,2]
[348920399,1736873446435,-500.0,0.00010238,2]
[348920401,1736873446445,-500.0,0.00010238,2]
[348920403,1736873446455,-500.0,0.00010238,2]
[348920405,1736873446465,-500.0,0.00010238,2]
[348920407,1736873446475,-500.0,0.00010238,2]
[348920409,1736873446485,-607.27,0.00010238,2]
[348920411,1736873446494,-500.0,0.00010238,2]
[348920413,1736873446503,-500.0,0.00010238,2]
[348920415,1736873446513,-500.0,0.00010238,2]
[348920417,1736873446522,-500.0,0.00010238,2]
[348920419,1736873446531,-500.0,0.00010238,2]
[348920422,1736873446545,-500.0,0.00010238,2]
[348920424,1736873446554,-500.0,0.00010238,2]
[348920426,1736873446564,-500.0,0.00010238,2]
[348920428,1736873446574,-500.0,0.00010238,2]
[348920430,1736873446583,-500.0,0.00010238,2]
[348920432,1736873446592,-500.0,0.00010238,2]
[348920434,1736873446602,-500.0,0.00010238,2]
[348920436,1736873446612,-500.0,0.00010238,2]
[348920438,1736873446622,-507.59500827,0.00010238,2]
[348920440,1736873446632,-500.0,0.00010238,2]
[348920442,1736873446642,-226.83881288,0.00010238,2]
[348920444,1736873446651,-500.0,0.00010238,2]
[348920446,1736873446660,-500.0,0.00010238,2]
[348920448,1736873446669,-500.0,0.00010238,2]
[348920449,1736873446679,-453.98688234,0.00010238,2]
[348920451,1736873446688,-597.63,0.00010238,2]
[348920453,1736873446701,-500.0,0.00010238,2]
[348920455,1736873446710,-500.0,0.00010238,2]
[348920457,1736873446720,-500.0,0.00010238,2]
[348920459,1736873446730,-500.0,0.00010238,2]
[348920461,1736873446740,-500.0,0.00010238,2]
[348920463,1736873446750,-500.0,0.00010238,2]
[348920465,1736873446759,-289.49375737,0.00010238,2]
[348920467,1736873446769,-500.0,0.00010238,2]
[348920469,1736873446779,-500.0,0.00010238,2]
[348920471,1736873446788,-500.0,0.00010238,2]
[348920473,1736873446797,-500.0,0.00010238,2]
[348920475,1736873446807,-500.0,0.00010238,2]
[348920477,1736873446816,-391.06799415,0.00010238,2]
[348920479,1736873446826,-500.0,0.00010238,2]
[348920481,1736873446836,-523.21,0.00010238,2]